fUSD/lending_fUSD_20250202
["ID","MTS","AMOUNT","RATE_DAILY","PERIOD"]
[351241111,1738470646961,-1000.0,0.00016,2]
[351241113,1738470646971,-1000.0,0.00016,2]
[351241115,1738470646980,-1000.0,0.00016,2]
[351241117,1738470646990,-1000.0,0.00016,2]
[351241119,1738470646998,-1000.0,0.00016,2]
[351241121,1738470647008,-1000.0,0.00016,2]
[351241123,1738470647017,-1000.0,0.00016,2]
[351241125,1738470647031,-1000.0,0.00016,2]
[351241127,1738470647041,-1000.0,0.00016,2]
[351241129,1738470647049,-1000.0,0.00016,2]
[351241131,1738470647059,-1000.0,0.00016,2]
[351241133,1738470647068,-1000.0,0.00016,2]
[351241135,1738470647078,-1000.0,0.00016,2]
[351241137,1738470647087,-1000.0,0.00016,2]
[351241139,1738470647096,-1000.0,0.00016,2]
[351241141,1738470647105,-1000.0,0.00016,2]
[351241143,1738470647115,-1000.0,0.00016,2]
[351241145,1738470647126,-1000.0,0.00016,2]
[351241147,1738470647135,-1000.0,0.00016,2]
[351241149,1738470647143,-1000.0,0.00016,2]
[351241151,1738470647153,-1000.0,0.00016,2]
[351241153,1738470647162,-1000.0,0.00016,2]
[351241154,1738470647171,-1000.0,0.00016,2]
[351241157,1738470647182,-1000.0,0.00016,2]
[351241159,1738470647191,-1000.0,0.00016,2]
[351241160,1738470647201,-1000.0,0.00016,2]
[351241162,1738470647211,-1000.0,0.00016,2]
[351241164,1738470647220,-1000.0,0.00016,2]
[351241166,1738470647229,-1000.0,0.00016,2]
[351241168,1738470647240,-1000.0,0.00016,2]
[351241170,1738470647249,-1000.0,0.00016,2]
[351241173,1738470647260,-1000.0,0.00016,2]
[351241175,1738470647269,-1000.0,0.00016,2]
[351241176,1738470647280,-1000.0,0.00016,2]
[351241179,1738470647289,-1000.0,0.00016,2]
[351241180,1738470647298,-1000.0,0.00016,2]
[351241183,1738470647307,-1000.0,0.00016,2]
[351241185,1738470647317,-1000.0,0.00016,2]
[351241187,1738470647326,-1000.0,0.00016,2]
[351241189,1738470647335,-1000.0,0.00016,2]
[351241191,1738470647344,-1000.0,0.00016,2]
[351241193,1738470647353,-1000.0,0.00016,2]
[351241195,1738470647362,-1000.0,0.00016,2]
[351241197,1738470647371,-1000.0,0.00016,2]
[351241199,1738470647380,-1000.0,0.00016,2]
[351241200,1738470647389,-1000.0,0.00016,2]
[351241202,1738470647398,-1000.0,0.00016,2]
[351241204,1738470647407,-1000.0,0.00016,2]
[351241206,1738470647416,-1000.0,0.00016,2]
[351241209,1738470647427,-1000.0,0.00016,2]
[351241210,1738470647436,-1000.0,0.00016,2]
[351241212,1738470647446,-1000.0,0.00016,2]
[351241214,1738470647455,-1000.0,0.00016,2]
[351241216,1738470647464,-1000.0,0.00016,2]
[351241219,1738470647473,-98700.39227032,0.00016,2]
[351241220,1738470647482,-536.0,0.00016,2]
[351241223,1738470647492,-500.0,0.00016,2]
[351241225,1738470647501,-500.0,0.00016,2]
[351241226,1738470647510,-500.0,0.00016,2]
[351241228,1738470647519,-500.0,0.00016,2]
[351241230,1738470647528,-3080.51670718,0.00016011,2]
[351241232,1738470647537,-2523.00286144,0.00016011,2]
[351241234,1738470647547,-205.0,0.0001602,2]
[351241236,1738470647556,-211.0,0.0001602,2]
[351241238,1738470647565,-1482.66698064,0.00016038,2]
[351241240,1738470647574,-205.0,0.0001606,2]
[351241242,1738470647584,-3080.51670718,0.00016067,2]
[351241244,1738470647593,-2523.00286144,0.00016067,2]
[351241246,1738470647602,-2785.0,0.00016082,2]
[351241248,1738470647611,-261.4157412,0.00016082,2]
[351241250,1738470647621,-5999.99999766,0.00016086,2]
[351241252,1738470647629,-1000.0,0.00016086,2]
[351241254,1738470647638,-1000.0,0.00016086,2]
[351241256,1738470647647,-1000.0,0.00016086,2]
[351241258,1738470647656,-1000.0,0.00016086,2]
[351241260,1738470647666,-1000.0,0.00016086,2]
[351241262,1738470647674,-1000.0,0.00016086,2]
[351241264,1738470647686,-1000.0,0.00016086,2]
[351241266,1738470647696,-1000.0,0.00016086,2]
[351241267,1738470647705,-1000.0,0.00016086,2]
[351241268,1738470647714,-1000.0,0.00016086,2]
[351241269,1738470647723,-1000.0,0.00016086,2]
[351241270,1738470647732,-1000.0,0.00016086,2]
[351241271,1738470647741,-1000.0,0.00016086,2]
[351241272,1738470647750,-1000.0,0.00016086,2]
[351241273,1738470647759,-441.841,0.00016088,2]
[351241274,1738470647767,-3907.01,0.00016088,2]
[351241275,1738470647776,-150.0,0.00016088,2]
[351241277,1738470647785,-174.30428847,0.0001609,2]
[351241279,1738470647794,-300.0,0.00016099,2]
[351241281,1738470647803,-1000.0,0.00016099,2]
[351241282,1738470647812,-1000.0,0.00016099,2]
[351241284,1738470647822,-1000.0,0.00016099,2]
[351241286,1738470647831,-1000.0,0.00016099,2]
[351241288,1738470647840,-1000.0,0.00016099,2]
[351241290,1738470647849,-1000.0,0.00016099,2]
[351241292,1738470647859,-1000.0,0.00016099,2]
[351241295,1738470647869,-690.0,0.00016099,2]
[351241297,1738470647879,-1471.84744085,0.00016099,5]
[351241299,1738470647889,-300.0,0.00016099,2]
[351241301,1738470647898,-300.0,0.00016099,2]
[351241303,1738470647907,-305.34106269,0.00016099,2]
[351241305,1738470647916,-1516.0,0.00016099,2]
[351241307,1738470647926,-894090.4188966,0.000161,2]
[351241309,1738470647936,-163.994012,0.000161,2]
[351241311,1738470647945,-163.994012,0.000161,2]
[351241313,1738470647955,-163.994012,0.000161,2]
[351241315,1738470647965,-163.994012,0.000161,2]
[351241317,1738470647974,-168.835622,0.000161,2]
[351241319,1738470647983,-168.835622,0.000161,2]
[351241321,1738470647992,-229.237068,0.000161,2]
[351241323,1738470648000,-229.237068,0.000161,2]
[351241325,1738470648009,-151.0,0.000161,2]
[351241327,1738470648019,-213.037768,0.000161,2]
[351241329,1738470648028,-151.0,0.000161,2]
[351241331,1738470648036,-151.0,0.000161,2]
[351241333,1738470648046,-151.0,0.000161,2]
[351241335,1738470648055,-151.0,0.000161,2]
[351241337,1738470648064,-151.0,0.000161,2]
[351241339,1738470648073,-151.0,0.000161,2]
[351241341,1738470648082,-772.53865,0.000161,2]
[351241343,1738470648095,-183.344881,0.000161,2]
[351241345,1738470648103,-183.344881,0.000161,2]
[351241347,1738470648113,-151.0,0.000161,2]
[351241349,1738470648124,-182.257748,0.000161,2]
[351241351,1738470648133,-212.209399,0.000161,2]
[351241353,1738470648142,-182.257748,0.000161,2]
[351241355,1738470648152,-296.940561,0.000161,2]
[351241356,1738470648161,-151.0,0.000161,2]
[351241358,1738470648170,-151.0,0.000161,2]
[351241360,1738470648179,-151.0,0.000161,2]
[351241362,1738470648189,-151.0,0.000161,2]
[351241364,1738470648200,-232.954488,0.000161,2]
[351241367,1738470648210,-232.954488,0.000161,2]
[351241368,1738470648220,-150.0,0.000161,2]
[351241371,1738470648230,-150.0,0.000161,2]
[351241372,1738470648239,-150.0,0.000161,2]
[351241374,1738470648248,-150.0,0.000161,2]
[351241377,1738470648257,-151.902,0.00016107,2]
[351241378,1738470648267,-150.0,0.00016107,2]
[351241380,1738470648276,-180.302,0.00016107,2]
[351241382,1738470648286,-167.282,0.00016107,2]
[351241384,1738470648295,-150.462,0.00016107,2]
[351241386,1738470648305,-150.398,0.00016107,2]
[351241388,1738470648315,-300.0,0.00016108,2]
[351241390,1738470648324,-1388.0,0.00016109,2]
[351241393,1738470648333,-1388.0,0.00016109,2]
[351241395,1738470648342,-1388.0,0.00016109,2]
[351241396,1738470648352,-1388.0,0.00016109,2]
[351241399,1738470648361,-1388.0,0.00016109,2]
[351241400,1738470648370,-1388.0,0.00016109,2]
[351241403,1738470648379,-1388.0,0.00016109,2]
[351241405,1738470648388,-1388.0,0.00016109,2]
[351241406,1738470648398,-1388.0,0.00016109,2]
[351241408,1738470648408,-1388.0,0.00016109,2]
[351241410,1738470648417,-1388.0,0.00016109,2]
[351241412,1738470648427,-1388.0,0.00016109,2]
[351241414,1738470648438,-1388.0,0.00016109,2]
[351241417,1738470648448,-1388.0,0.00016109,2]
[351241419,1738470648458,-1388.0,0.00016109,2]
[351241421,1738470648468,-1388.0,0.00016109,2]
[351241423,1738470648477,-1388.0,0.00016109,2]
[351241425,1738470648487,-1388.0,0.00016109,2]
[351241427,1738470648497,-1388.0,0.00016109,2]
[351241428,1738470648507,-1388.0,0.00016109,2]
[351241430,1738470648517,-1388.0,0.00016109,2]
[351241432,1738470648526,-843.93454011,0.00016109,2]
[351241434,1738470648535,-156.43705959,0.0001611,2]
[351241436,1738470648544,-3080.51670718,0.00016122,2]
[351241438,1738470648553,-2523.00286144,0.00016122,2]
[351241440,1738470648563,-151.46487892,0.00016127,2]
[351241442,1738470648572,-150.0,0.00016127,2]
[351241444,1738470648581,-150.0,0.00016127,2]
[351241446,1738470648591,-261.4157412,0.00016137,2]
[351241448,1738470648600,-150.0,0.00016155,2]
[351241450,1738470648610,-175.92407313,0.00016155,2]
[351241452,1738470648620,-205.0,0.0001616,2]
[351241454,1738470648629,-1462.33,0.00016164,7]
[351241456,1738470648639,-700.0,0.00016164,2]
[351241458,1738470648647,-438.46,0.00016164,2]
[351241460,1738470648657,-333.26,0.00016164,2]
[351241462,1738470648666,-150.0,0.00016164,2]
[351241464,1738470648676,-438.46,0.00016164,2]
[351241466,1738470648686,-438.46,0.00016164,2]
[351241468,1738470648697,-1482.66698064,0.00016176,2]
[351241470,1738470648707,-3080.51670718,0.00016178,2]
[351241472,1738470648716,-2523.00286144,0.00016178,2]
[351241474,1738470648726,-204.23190098,0.00016182,2]
[351241476,1738470648735,-3317.13,0.0001619,4]
[351241478,1738470648744,-216.4098183,0.00016193,2]
[351241480,1738470648754,-222.0,0.000162,2]
[351241482,1738470648763,-170.5795948,0.000162,2]
[351241484,1738470648773,-5026.0,0.000162,2]
[351241486,1738470648782,-3083.91880697,0.000162,2]
[351241488,1738470648791,-261.4157412,0.00016219,2]
[351241490,1738470648802,-205.0,0.0001622,2]
[351241492,1738470648811,-211.0,0.0001622,2]
[351241494,1738470648820,-3080.51670718,0.00016233,2]
[351241496,1738470648830,-2523.00286144,0.00016233,2]
[351241498,1738470648839,-205.0,0.0001627,2]
[351241500,1738470648849,-229435.4980824,0.0001628,2]
[351241503,1738470648864,-432.00902886,0.0001628,2]
[351241977,1738470950988,-359.59,0.0001452,2]
[351241978,1738470951090,-1340.47,0.0001589,7]
[351241979,1738470951149,-240.41,0.0001452,2]
[351241980,1738470951173,-500.0,0.0001452,2]
[351241981,1738470951199,-359.59,0.00015337,2]
[351241982,1738470951225,-768.6,0.00015356,2]
[351241983,1738470951278,-231.4,0.00015356,2]
[351241984,1738470951302,-600.0,0.0001589,2]
[351241985,1738470951325,-812.6,0.00015954,2]
[351241986,1738470951371,-214.24827334,0.00015954,2]
[351241987,1738470951394,-150.0,0.00015972,2]
[351241988,1738470951417,-378.89,0.00016,2]
[351241989,1738470951442,-373.74,0.00016,2]
[351241990,1738470951466,-377.57,0.00016,2]
[351241991,1738470951489,-367.53,0.00016,2]
[351241992,1738470951510,-370.87,0.00016,2]
[351241993,1738470951531,-500.0,0.00016011,2]
[351241994,1738470951551,-538.0,0.00016097,2]
[351241995,1738470951571,-949.17345332,0.00016097,2]
[351241996,1738470955272,500.0,0.00015775,2]
[351241997,1738470955293,542.2662307,0.00015775,2]
[351241998,1738470993188,478.25,0.00013441,2]
[351241999,1738470993258,6.33204264,0.00015705,2]
[351242000,1738470993282,471.91795736,0.00015705,2]
[351242001,1738471041114,128.08204264,0.0001452,2]
[351242002,1738471041138,371.91795736,0.0001452,2]
[351242003,1738471061123,500.0,0.0001452,2]
[351242005,1738471257275,128.08204264,0.00010137,2]
[351242006,1738471257297,123.15795736,0.00010137,2]
[351242008,1738471407835,153.66,0.00016658,30]
[351242009,1738471463752,1284.62,0.0001589,7]
[351242076,1738471725689,12289.96549882,0.00023,120]
[351242077,1738471783619,5203.13128547,0.00023,120]
[351242089,1738471832879,-460.37,0.00015244,2]
[351242090,1738471832889,-90.25852736,0.0001527,2]
[351242091,1738471832901,-148.67147264,0.0001527,2]
[351242092,1738471832911,-271.23,0.00015275,2]
[351242093,1738471832921,-1000.0,0.00015277,2]
[351242094,1738471832931,-175.64,0.00015747,2]
[351242095,1738471832941,-237.72447156,0.00015811,2]
[351242096,1738471832951,-500.0,0.0001589,2]
[351242097,1738471832961,-378.86,0.0001589,2]
[351242098,1738471832971,-373.05,0.0001589,2]
[351242099,1738471832980,-151.743,0.00016097,2]
[351242100,1738471832990,-1271.0,0.00016097,2]
[351242101,1738471832999,-318.29289356,0.00016097,2]
[351242102,1738471833011,-1702.70710644,0.00016097,2]
[351242103,1738471833021,-1649.587,0.00016097,2]
[351242104,1738471833031,-907.0,0.00016097,2]
[351242105,1738471833041,-3057.715,0.00016097,2]
[351242106,1738471833052,-782.0,0.00016097,2]
[351242107,1738471833062,-1263.0,0.00016097,2]
[351242108,1738471833072,-150.0,0.00016097,2]
[351242109,1738471833083,-3436.2365714,0.00016097,2]
[351242110,1738471833156,-471.7634286,0.00016097,2]
[351242111,1738471833166,-370.06,0.00016102,2]
[351242112,1738471833176,-372.84,0.00016104,2]
[351242113,1738471833188,-379.6,0.00016108,2]
[351242114,1738471833198,-156.43705952,0.0001611,2]
[351242115,1738471833208,-370.93,0.00016111,2]
[351242116,1738471833218,-376.99,0.00016118,2]
[351242117,1738471833228,-374.78,0.0001613,2]
[351242118,1738471833238,-372.83,0.00016153,2]
[351242119,1738471833247,-1284.62,0.00016164,7]
[351242120,1738471833256,-1526.35632078,0.0001618,2]
[351242121,1738471833266,-3836.52092061,0.00016192,7]
[351242122,1738471833278,-103089.48910098,0.00016192,7]
[351242123,1738471833310,-2084.09225182,0.00016192,7]
[351242124,1738471833322,-3614.97335,0.00016192,7]
[351242125,1738471833333,-255.54442611,0.00016192,7]
[351242126,1738471836270,-156.827,0.00016097,2]
[351242127,1738471836280,-6933.01844227,0.00016192,7]
[351242128,1738471836291,-762.17542217,0.00016192,7]
[351242209,1738471838092,-319.56091087,0.00016192,7]
[351242210,1738471838421,-548.9275637,0.00016192,7]
[351242429,1738471840576,-1376.65092264,0.00016192,7]
[351242432,1738471840602,-933.37300001,0.00016192,7]
[351242437,1738471840633,-1.33389267,0.00016192,7]
[351242760,1738471843910,-22369.29979615,0.00016192,7]
[351242761,1738471843920,-151.51,0.000162,2]
[351242763,1738471843930,-902.0,0.000162,2]
[351242764,1738471843939,-150.0,0.000162,2]
[351242765,1738471843949,-189.66,0.000162,2]
[351242766,1738471843958,-438.27,0.000162,2]
[351242767,1738471843968,-1108.6,0.000162,2]
[351242768,1738471843977,-150.0,0.000162,2]
[351242769,1738471843986,-1526.35632078,0.00016204,2]
[351242770,1738471843996,-1526.35632078,0.00016229,2]
[351242771,1738471844006,-1526.35632078,0.00016253,2]
[351242772,1738471844015,-678.5251111,0.00016269,2]
[351242773,1738471844025,-536.1580147,0.00016269,2]
[351242774,1738471844035,-2135.3263938,0.00016269,2]
[351242775,1738471844044,-1034.5473815,0.00016269,2]
[351242776,1738471844054,-1561.630235,0.00016269,2]
[351242777,1738471844063,-3807.78,0.0001627,2]
[351242778,1738471844073,-1526.35632078,0.00016278,2]
[351242779,1738471844083,-143317.07880936,0.0001628,2]
[351242780,1738471844093,-806.27108086,0.0001628,2]
[351242781,1738471844103,-200.0,0.0001628,2]
[351242782,1738471844112,-200.0,0.0001628,2]
[351242783,1738471844121,-124484.02202206,0.0001628,2]
[351242784,1738471844131,-3857.10628,0.0001628,2]
[351242785,1738471844141,-1391.48873057,0.000163,2]
[351242786,1738471844150,-261.4157412,0.00016301,2]
[351242787,1738471844161,-1526.35632078,0.00016302,2]
[351242788,1738471844171,-1391.48873052,0.00016311,2]
[351242789,1738471844181,-151.50868395,0.00016319,2]
[351242790,1738471844190,-1391.48873052,0.00016322,2]
[351242791,1738471844200,-150.0,0.00016324,2]
[351242792,1738471844210,-1107.63124238,0.00016325,2]
[351242793,1738471844220,-1105.01366221,0.00016325,2]
[351242794,1738471844230,-1032.60015424,0.00016325,2]
[351242795,1738471844239,-1063.11341841,0.00016325,2]
[351242796,1738471844248,-1008.60684788,0.00016325,2]
[351242797,1738471844257,-1051.69580609,0.00016325,2]
[351242798,1738471844266,-1042.83368746,0.00016325,2]
[351242799,1738471844275,-1526.35632078,0.00016327,2]
[351242800,1738471844285,-156.43705959,0.00016329,2]
[351242801,1738471844294,-1391.48873052,0.00016333,2]
[351242802,1738471844303,-152.773741,0.00016338,2]
[351242803,1738471844312,-177.4336122,0.00016338,2]
[351242804,1738471844321,-151.68311649,0.00016338,2]
[351242805,1738471844332,-2587.30588812,0.00016338,2]
[351242806,1738471844341,-6345.6282,0.00016338,14]
[351242807,1738471844351,-1391.48873052,0.00016344,2]
[351242809,1738471844360,-1526.35632078,0.00016351,2]
[351242811,1738471844369,-150.0,0.00016352,2]
[351242813,1738471844378,-1391.48873052,0.00016356,2]
[351242815,1738471844387,-150.0,0.00016356,2]
[351242817,1738471844397,-150.0,0.00016356,2]
[351242819,1738471844406,-978.97892659,0.00016356,2]
[351242822,1738471844415,-150.0,0.00016356,2]
[351242824,1738471844425,-500.0,0.00016356,2]
[351242826,1738471844435,-151.0,0.00016359,2]
[351242828,1738471844445,-1391.48873052,0.00016367,2]
[351242830,1738471844454,-205.0,0.0001637,2]
[351242832,1738471844463,-1526.35632078,0.00016376,2]
[351242834,1738471844472,-1391.48873052,0.00016378,2]
[351242835,1738471844481,-5800.0,0.00016383,2]
[351242837,1738471844491,-150.0,0.00016383,2]
[351242839,1738471844500,-500.0,0.00016383,2]
[351242841,1738471844508,-261.4157412,0.00016384,2]
[351242842,1738471844520,-1000.0,0.00016384,2]
[351242843,1738471844529,-150.0,0.00016388,2]
[351242844,1738471844538,-1391.48873052,0.00016389,2]
[351242845,1738471844547,-3807.78,0.0001639,2]
[351242846,1738471844555,-1000.0,0.00016391,2]
[351242847,1738471844566,-5800.0,0.00016392,2]
[351242867,1738471844770,-360.11450338,0.00016392,2]
[351242869,1738471844781,-443.93004855,0.00016392,2]
[351242871,1738471844791,-150.0,0.00016395,2]
[351242873,1738471844801,-150.0,0.00016399,2]
[351242875,1738471844811,-102552.21123911,0.000164,2]
[351242877,1738471844820,-5800.0,0.000164,2]
[351242879,1738471844829,-205.0,0.000164,2]
[351242881,1738471844838,-205.0,0.000164,2]
[351242883,1738471844848,-205.0,0.000164,2]
[351242885,1738471844857,-205.0,0.000164,2]
[351242887,1738471844867,-205.0,0.000164,2]
[351242889,1738471844877,-151.0,0.000164,2]
[351242891,1738471844886,-151.0,0.000164,2]
[351242893,1738471844895,-171.295558,0.000164,2]
[351242895,1738471844905,-171.295558,0.000164,2]
[351242897,1738471844915,-151.0,0.000164,2]
[351242899,1738471844925,-151.0,0.000164,2]
[351242901,1738471844935,-656.424617,0.000164,2]
[351242903,1738471844944,-151.313114,0.000164,2]
[351242905,1738471844954,-5800.0,0.000164,2]
[351242907,1738471844964,-430.694043,0.000164,2]
[351242909,1738471844973,-430.694043,0.000164,2]
[351242911,1738471844982,-151.0,0.000164,2]
[351242913,1738471844992,-151.0,0.000164,2]
[351242915,1738471845001,-359.956856,0.000164,2]
[351242917,1738471845010,-359.956856,0.000164,2]
[351242919,1738471845019,-151.0,0.000164,2]
[351242921,1738471845028,-156.791132,0.000164,2]
[351242923,1738471845038,-151.0,0.000164,2]
[351242925,1738471845047,-151.0,0.000164,2]
[351242927,1738471845056,-151.919713,0.000164,2]
[351242929,1738471845066,-151.0,0.000164,2]
[351242931,1738471845075,-151.0,0.000164,2]
[351242933,1738471845085,-535.856466,0.000164,2]
[351242935,1738471845094,-151.0,0.000164,2]
[351242937,1738471845104,-535.856466,0.000164,2]
[351242939,1738471845113,-151.0,0.000164,2]
[351242941,1738471845123,-156.925276,0.000164,2]
[351242943,1738471845133,-156.925276,0.000164,2]
[351242945,1738471845143,-733.911718,0.000164,2]
[351242947,1738471845152,-733.911718,0.000164,2]
[351242949,1738471845162,-165.010393,0.000164,2]
[351242951,1738471845171,-165.010393,0.000164,2]
[351242953,1738471845182,-151.0,0.000164,2]
[351242955,1738471845191,-151.0,0.000164,2]
[351242957,1738471845202,-195.18554329,0.000164,2]
[351242959,1738471845213,-9852.43593472,0.000164,2]
[351242961,1738471845223,-221.0,0.000164,2]
[351242963,1738471845235,-1526.35632078,0.000164,2]
[351242965,1738471845244,-2699.8621815,0.000164,2]
[351242967,1738471845254,-2699.86218143,0.000164,2]
[351242969,1738471845263,-2699.86218143,0.000164,2]
[351242971,1738471845272,-1391.48873052,0.000164,2]
[351242973,1738471845282,-2699.86218143,0.000164,2]
[351242975,1738471845291,-2699.86218143,0.000164,2]
[351242977,1738471845300,-2699.86218143,0.000164,2]
[351242979,1738471845310,-2699.86218143,0.000164,2]
[351242981,1738471845319,-2699.86218143,0.000164,2]
[351242983,1738471845328,-18766.36462088,0.000164,2]
[351242985,1738471845338,-2699.86218143,0.000164,2]
[351242987,1738471845347,-2699.86218143,0.000164,2]
[351242989,1738471845356,-2699.86218143,0.000164,2]
[351242991,1738471845365,-2699.86218143,0.000164,2]
[351242993,1738471845375,-2699.86218143,0.000164,2]
[351242995,1738471845384,-2699.86218143,0.000164,2]
[351242997,1738471845394,-2699.86218143,0.000164,2]
[351242999,1738471845404,-248.19030634,0.000164,2]
[351243001,1738471845413,-2699.86218143,0.000164,2]
[351243003,1738471845423,-2699.86218143,0.000164,2]
[351243005,1738471845432,-2699.86218143,0.000164,2]
[351243007,1738471845441,-2699.86218143,0.000164,2]
[351243009,1738471845451,-2699.86218143,0.000164,2]
[351243011,1738471845460,-1000.0,0.00016405,2]
[351243013,1738471845470,-205.0,0.0001641,2]
[351243015,1738471845479,-211.0,0.0001641,2]
[351243017,1738471845494,-150.0,0.0001641,2]
[351243019,1738471845512,-150.0,0.00016411,2]
[351243021,1738471845521,-500.0,0.00016411,2]
[351243023,1738471845535,-150.0,0.00016411,2]
[351243025,1738471845544,-9852.43593466,0.00016411,2]
[351243027,1738471845554,-422.35441461,0.0001642,2]
[351243029,1738471845565,-1000.0,0.00016422,2]
[351243031,1738471845574,-9852.43593466,0.00016422,2]
[351243033,1738471845584,-150.0,0.00016425,2]
[351243036,1738471845593,-296.89346659,0.00016428,2]
[351243038,1738471845605,-9852.43593466,0.00016433,2]
[351243040,1738471845614,-202.0,0.00016433,2]
[351243042,1738471845624,-1354.0,0.00016438,2]
[351243044,1738471845633,-1290.51081,0.00016438,2]
[351243045,1738471845643,-155.18953,0.00016438,2]
[351243048,1738471845653,-154.438762,0.00016438,2]
[351243049,1738471845663,-157.857177,0.00016438,2]
[351243051,1738471845672,-1460.510354,0.00016438,2]
[351243053,1738471845681,-151.0,0.00016438,2]
[351243055,1738471845690,-151.0,0.00016438,2]
[351243057,1738471845700,-151.0,0.00016438,2]
[351243059,1738471845709,-151.0,0.00016438,2]
[351243061,1738471845718,-151.0,0.00016438,2]
[351243063,1738471845728,-151.411297,0.00016438,2]
[351243065,1738471845737,-151.0,0.00016438,2]
[351243067,1738471845746,-151.0,0.00016438,2]
[351243069,1738471845756,-151.0,0.00016438,2]
[351243071,1738471845765,-151.0,0.00016438,2]
[351243073,1738471845775,-151.0,0.00016438,2]
[351243075,1738471845784,-151.0,0.00016438,2]
[351243077,1738471845794,-151.0,0.00016438,2]
[351243079,1738471845803,-158.052001,0.00016438,2]
[351243081,1738471845812,-171.295558,0.00016438,2]
[351243083,1738471845822,-171.295558,0.00016438,2]
[351243085,1738471845832,-171.295558,0.00016438,2]
[351243087,1738471845841,-171.295558,0.00016438,2]
[351243089,1738471845851,-171.295558,0.00016438,2]
[351243091,1738471845860,-171.295558,0.00016438,2]
[351243093,1738471845869,-171.295558,0.00016438,2]
[351243095,1738471845878,-171.295558,0.00016438,2]
[351243097,1738471845888,-151.0,0.00016438,2]
[351243099,1738471845898,-151.0,0.00016438,2]
[351243101,1738471845907,-239.030664,0.00016438,2]
[351243103,1738471845916,-151.0,0.00016438,2]
[351243105,1738471845926,-151.0,0.00016438,2]
[351243107,1738471845935,-151.0,0.00016438,2]
[351243109,1738471845945,-151.0,0.00016438,2]
[351243111,1738471845954,-656.424617,0.00016438,2]
[351243113,1738471845964,-656.424617,0.00016438,2]
[351243115,1738471845973,-656.424617,0.00016438,2]
[351243117,1738471845983,-656.424617,0.00016438,2]
[351243119,1738471845992,-430.694043,0.00016438,2]
[351243121,1738471846001,-430.694043,0.00016438,2]
[351243123,1738471846011,-430.694043,0.00016438,2]
[351243125,1738471846020,-430.694043,0.00016438,2]
[351243127,1738471846030,-430.694043,0.00016438,2]
[351243129,1738471846039,-430.694043,0.00016438,2]
[351243131,1738471846048,-430.694043,0.00016438,2]
[351243133,1738471846057,-430.694043,0.00016438,2]
[351243135,1738471846066,-151.0,0.00016438,2]
[351243137,1738471846075,-151.315083,0.00016438,2]
[351243139,1738471846084,-151.0,0.00016438,2]
[351243141,1738471846093,-151.0,0.00016438,2]
[351243143,1738471846102,-219.766568,0.00016438,2]
[351243145,1738471846111,-359.956856,0.00016438,2]
[351243147,1738471846121,-359.956856,0.00016438,2]
[351243149,1738471846130,-359.956856,0.00016438,2]
[351243151,1738471846140,-359.956856,0.00016438,2]
[351243153,1738471846149,-359.956856,0.00016438,2]
[351243155,1738471846158,-359.956856,0.00016438,2]
[351243157,1738471846167,-359.956856,0.00016438,2]
[351243158,1738471846176,-359.956856,0.00016438,2]
[351243159,1738471846185,-151.0,0.00016438,2]
[351243160,1738471846194,-151.0,0.00016438,2]
[351243161,1738471846204,-151.0,0.00016438,2]